Cogmind - Beta 15 @@@ ROGUE MODE // 2025.05.07 @ 13:10:43 Player: celerysam Result: Destroyed by PY-FIW(R) with Subdweller Beam Cannon Performance ------------- Evolutions (0) 0 Regions Visited (2) 400 Robots Destroyed (17) 85 Value Destroyed (348) 348 Prototype IDs (0) 0 Alien Tech Used (0) 0 Bonus (0) 0 TOTAL SCORE: 833 Bonus ------- None Cogmind --------- Core Integrity 0/250 Matter 268/300 Energy 251/265 System Corruption 0% Temperature Cool (15) Movement Rolling (145) Ox3 Location -10/Subcaves Parts ------- > --- POWER (1) -------- Improved Ion Engine > --- PROPULSION (2) --- Compact Wheel > --- UTILITY (2) ------ High-capacity Storage Unit ECM Suite > --- WEAPON (2) ------- Beam Cannon Rocket Launcher > --- INVENTORY (20) --- Ion Engine Improved Ion Engine Improved Ion Engine Improved Ion Engine Light Treads Light Treads Wheel Large Storage Unit Structural Scanner Signal Interpreter Terrain Scanner Medium Laser Beam Cannon Rocket Launcher Datajack Plasma Cutter Peak State ------------ > --- POWER ------------ Improved Ion Engine > --- PROPULSION ------- Wheel Compact Wheel > --- UTILITY ---------- Large Storage Unit ECM Suite > --- WEAPON ----------- Assault Rifle Rocket Launcher > --- INVENTORY -------- Improved Ion Engine Light Treads Light Treads High-capacity Storage Unit Structural Scanner Signal Interpreter Datajack Plasma Cutter [Rating: 10] Favorites ----------- Power Improved Ion Engine Engine Improved Ion Engine Propulsion Compact Wheel Leg Aluminum Leg Wheel Compact Wheel Utility ECM Suite Device ECM Suite Storage High-capacity Storage Unit Weapon Beam Cannon Energy Gun EM Pulse Gun Energy Cannon Beam Cannon Ballistic Gun Assault Rifle Launcher Rocket Launcher Build | -11 -10 -10 ------- Run | Yrd Mat Sub Slots Evolved . | . . . Power . | . . . Propulsion . | . . . Utility . | . . . Weapon . | . . . Parts Attached 18 | 4 13 1 Power 2 | 1 1 . Engine 2 | 1 1 . Core . | . . . Reactor . | . . . Propulsion 4 | 2 2 . Treads . | . . . Leg 2 | 2 . . Wheel 2 | . 2 . Hover . | . . . Flight . | . . . Utility 5 | 1 4 . Device 2 | . 2 . Storage 3 | 1 2 . Processor . | . . . Hackware . | . . . Protection . | . . . Artifact . | . . . Weapon 7 | . 6 1 Energy Gun 2 | . 2 . Energy Cannon 2 | . 2 . Ballistic Gun 1 | . 1 . Ballistic Cannon . | . . . Launcher 2 | . 1 1 Special Weapon . | . . . Impact Weapon . | . . . Slashing Weapon . | . . . Piercing Weapon . | . . . Special Melee Weapon . | . . . Unidentified Prototypes . | . . . Parts Lost 3 | . 2 1 Power . | . . . Propulsion 1 | . . 1 Utility . | . . . Weapon 2 | . 2 . Highest Loss Streak 1 | . 1 1 To Critical Strikes . | . . . Average Backups 10 | 5 10 16 Power 1 | . 1 4 Propulsion 2 | 3 2 3 Utility 2 | . 2 4 Weapon 1 | 2 1 3 Tool/Special . | . . . Unused Backups 14 | . 2 12 Power 5 | . 1 4 Propulsion 3 | . . 3 Utility 2 | . . 2 Weapon 2 | . 1 1 Tool/Special 2 | . . 2 Average Slot Usage (%) 95 | . 95 96 Engine 14 | . 14 14 Leg 4 | . 4 . Wheel 23 | . 23 24 Device 13 | . 13 14 Storage 14 | . 14 14 Energy Gun 4 | . 4 . Energy Cannon 11 | . 11 24 Ballistic Gun 3 | . 3 . Launcher 4 | . 4 3 Peak Build Rating 10 | 4 10 10 Average Rating 8 | 2 8 9 On Entrance 4 | . 4 10 Naked Turns . | . . . Heaviest Build 55 | 8 55 55 Greatest Support 26 | 20 26 26 Greatest Overweight (x) 2 | 2 2 2 Average Overweight (x) 1 | . 1 2 Largest Inventory Capacity 20 | 8 20 20 Average Capacity 15 | 7 16 20 Most Carried 16 | 8 16 16 Average Carried 10 | 6 11 16 Final Capacity 20 | 8 20 20 Final Carried 16 | 8 16 16 Class Distribution -------------------- 100% | Mutant Dominant Class ---------------- Mutant | -10/Materials Mutant | -10/Subcaves Resources | -11 -10 -10 ----------- Run | Yrd Mat Sub Matter Collected 525 | 240 285 . Remotely . | . . . Salvage Created 305 | . 305 . Parts 19 | . 19 . Haulers Intercepted 1 | . 1 . Recyclers Shooed . | . . . Parts Field Recycled . | . . . Retrieved Matter . | . . . Parts Self-Destructed . | . . . Prevented . | . . . Kills | -11 -10 -10 ------- Run | Yrd Mat Sub Combat Hostiles Destroyed 13 | . 13 . Guns 4 | . 4 . AOE 8 | . 8 . Classes Destroyed 5 | . 5 . Builder 1 | . 1 . Hauler 1 | . 1 . Watcher 2 | . 2 . Swarmer 9 | . 9 . Grunt 4 | . 4 . Best Kill Streak 6 | . 6 . Combat Bots Only 3 | . 3 . Max Kills in Single Turn 3 | . 3 . Gunslinging 1 | . 1 . Exploded 3 | . 3 . Melee . | . . . Uniques/NPCs Destroyed . | . . . Combat | -11 -10 -10 -------- Run | Yrd Mat Sub Hostile Shots Fired 68 | . 53 15 Missed 20 | . 14 6 Hits 48 | . 39 9 Projectile 48 | . 39 9 Critical Strikes 1 | . . 1 Damage Taken 650 | . 438 212 Core 257 | . 109 148 Absorbed by Shields . | . . . Core Remaining (%) 100 | 100 . . Volleys Fired 44 | . 39 5 Largest 2 | . 2 2 Hottest 120 | . 120 120 Shots Fired 84 | . 74 10 Gun 43 | . 43 . Cannon 30 | . 22 8 Launcher 11 | . 9 2 Special . | . . . Kinetic 22 | . 22 . Thermal 33 | . 25 8 Explosive 11 | . 9 2 Electromagnetic 18 | . 18 . Robot Hit Streak 7 | . 4 7 Robot Miss Streak 12 | . 12 2 Penetration Max . | . . . Secondary Targets 1 | . 1 . Max Gunslinging Chain 1 | . 1 . Shots Hit Robots 32 | . 24 8 Core Hits 16 | . 16 . Critical Kills 1 | . 1 . Critical Parts Destroyed . | . . . Critical Strikes 1 | . 1 . Meltdown 1 | . 1 . Melee Attacks . | . . . Impact . | . . . Slashing . | . . . Piercing . | . . . Sneak Attacks . | . . . Combat Hostiles . | . . . Follow-up Attacks . | . . . Damage Inflicted 1267 | . 953 314 Guns 241 | . 241 . Cannons 175 | . 68 107 Explosions 851 | . 644 207 Melee . | . . . Ramming . | . . . Kinetic 133 | . 133 . Thermal 228 | . 121 107 Explosive 798 | . 591 207 Electromagnetic 108 | . 108 . Impact . | . . . Slashing . | . . . Piercing . | . . . Highest Corruption . | . . . Average Corruption . | . . . Corruption Purged . | . . . Corruption Blocked . | . . . Overload Shots . | . . . Overflow Damage 25 | . 25 . Projectiles 4 | . 4 . Explosions 21 | . 21 . Melee . | . . . Knockbacks . | . . . Impact . | . . . Kinetic . | . . . Secondary . | . . . Self-Inflicted Damage 48 | . 48 . Shots 1 | . 1 . Rammed . | . . . Targets Rammed . | . . . Kicked . | . . . Crushed . | . . . Highest Temperature 189 | . 189 48 Average Temperature 40 | . 42 17 Received Heat Transfer 192 | . 123 69 Siege Activations . | . . . Martial Activations . | . . . Shielding Activations . | . . . Robots Disrupted . | . . . Combat Hostiles . | . . . Robots Corrupted . | . . . Combat Hostiles . | . . . Parts Fried . | . . . Impact Corruptions . | . . . Robots Melted 1 | . 1 . Combat Hostiles 1 | . 1 . Parts Melted 3 | . 3 . Heat Transferred 420 | . 198 222 Parts Sabotaged . | . . . Parts Stolen . | . . . Parts Stripped . | . . . Power Chain Reactions 1 | . 1 . Alert | -11 -10 -10 ------- Run | Yrd Mat Sub Maximum Alert Level 1 | . 1 . Low Security (%) 64 | 100 63 . Level 1 35 | . 36 . Level 2 . | . . . Level 3 . | . . . Level 4 . | . . . Level 5 . | . . . High Security . | . . . Max Security . | . . . Peak Influence 253 | . 253 . Initial . | . . . Average 133 | . 139 . Influence Increases 504 | . 504 . Destroy 0b10 Robot/C 260 | . 260 . Destroy 0b10 Robot/NC 20 | . 20 . Destroy Leader 56 | . 56 . Disable Machine 105 | . 105 . Destroy Structure 63 | . 63 . Influence Decreases 464 | . 386 78 Entered New Map 58 | . . 58 Time Decay 376 | . 366 10 Lost Part 30 | . 20 10 Squads Dispatched 1 | . 1 . Investigation 1 | . 1 . Extermination . | . . . Reinforcement . | . . . Assault . | . . . Garrison . | . . . Intercept . | . . . Searches Triggered . | . . . Construction Impeded . | . . . Haulers Reinforced . | . . . Active Scanning Responses . | . . . Cargo Convoy Interrupts . | . . . Stealth | -11 -10 -10 --------- Run | Yrd Mat Sub Distress Signals 1 | . 1 . Communications Jammed . | . . . Distress Signals . | . . . Times Spotted 33 | . 31 2 Peak Tracking Total 4 | . 4 2 Tactical Retreats 4 | . 4 . Traps | -11 -10 -10 ------- Run | Yrd Mat Sub Traps Triggered 1 | . 1 . Indirectly . | . . . Trap Hack Attempts . | . . . Triggered . | . . . Disarmed . | . . . Reprogrammed . | . . . Reused . | . . . Traps Extracted . | . . . Installed . | . . . Triggered . | . . . Machines | -11 -10 -10 ---------- Run | Yrd Mat Sub Machines Disabled 7 | . 7 . Max in Single Turn 2 | . 2 . Machines Repaired . | . . . Machines Dismantled . | . . . Machines Sabotaged . | . . . Overloaded Fab Kills . | . . . Hacking | -11 -10 -10 --------- Run | Yrd Mat Sub Machines Accessed 4 | . 4 . Terminals 4 | . 4 . Fabricators . | . . . Repair Stations . | . . . Recycling Units . | . . . Scanalyzers . | . . . Garrison Access . | . . . Total Hacks 5 | . 5 . Successful 2 | . 2 . Failed 3 | . 3 . Catastrophic . | . . . Database Lockouts . | . . . Manual 5 | . 5 . Terminals 5 | . 5 . Fabricators . | . . . Repair Stations . | . . . Recycling Units . | . . . Scanalyzers . | . . . Garrison Access . | . . . Terminal Hacks . | . . . Fabricator Hacks . | . . . Repair Station Hacks . | . . . Recycling Unit Hacks . | . . . Scanalyzer . | . . . Garrison Access Hacks . | . . . Unauthorized Hacks 2 | . 2 . Terminals 2 | . 2 . Botnet 2 | . 2 . Fabricators . | . . . Repair Stations . | . . . Recycling Units . | . . . Scanalyzers . | . . . Garrison Access . | . . . Data Cores Recovered . | . . . Used . | . . . Hacking Detections . | . . . Full Trace Events . | . . . Feedback Events . | . . . Feedback Blocked . | . . . Robot Schematics Acquired . | . . . Robots Built . | . . . Authchips . | . . . Time . | . . . Total Robot Build Rating . | . . . Part Schematics Acquired . | . . . Parts Built . | . . . Authchips . | . . . Time . | . . . Total Part Build Rating . | . . . Parts Repaired . | . . . Time . | . . . Parts Recycled . | . . . Recycled Matter . | . . . Retrieved Matter . | . . . Retrieved Components . | . . . Parts Scanalyzed . | . . . Part Schematics Acquired . | . . . Parts Damaged . | . . . Bothacking | -11 -10 -10 ------------ Run | Yrd Mat Sub Used RIF Installer . | . . . Robots Hacked . | . . . Non-combat . | . . . Combat . | . . . Robot Hacks Applied . | . . . Relay Couplers Released . | . . . Fabnet Peak Effective % . | . . . Robots Rewired . | . . . Allies Hacked . | . . . Hacks Repelled . | . . . Allies | -11 -10 -10 -------- Run | Yrd Mat Sub Total Allies . | . . . Largest Group . | . . . Highest-Rated Group . | . . . Highest-Rated Ally . | . . . Total Orders . | . . . Ally Attacks . | . . . Total Damage . | . . . Kills . | . . . Allies Corrupted . | . . . Allies Melted . | . . . Intel | -11 -10 -10 ------- Run | Yrd Mat Sub Active Infowar (turns) 1267 | . 1243 24 Structural 84 | . 84 . ECM 1183 | . 1159 24 Robot Analysis Total . | . . . Derelict Logs Recovered . | . . . Drone Launches . | . . . Drone Recoveries . | . . . Exploration | -11 -10 -10 ------------- Run | Yrd Mat Sub Turns Passed 1351 | 63 1264 24 Spaces Moved 889 | 49 834 6 Core 24 | 24 . . Treads . | . . . Legs 177 | 25 152 . Wheels 688 | . 682 6 Hover . | . . . Flight . | . . . Fastest Speed 50 | 50 90 120 Average Speed 114 | 100 115 120 Slowest Speed 150 | 150 120 120 Overloaded Moves . | . . . Propulsion Burnouts . | . . . Robots Hopped . | . . . Potential Cave-ins . | . . . Cave-ins Triggered . | . . . Exploration Rate (%) 34 | 3 97 2 Regions Visited 2 Branch Regions 1 Pre-discovered Areas . | . . . Known Exits Taken . | . . . Unknown Exits Taken 2 | 1 1 . Scrap Searched . | . . . Spaces Dug . | . . . Terrain Destroyed 73 | . 59 14 Melee . | . . . Projectile . | . . . AOE 73 | . 59 14 Terrain Rammed . | . . . Walls Destroyed . | . . . Machines Disabled . | . . . Actions | -11 -10 -10 --------- Run | Yrd Mat Sub Total 1134 | 61 1061 12 Wait 153 | . 153 . Move 887 | 48 833 6 Hop . | . . . Pick Up 25 | 9 16 . Fast Attach 5 | 3 2 . Attach 5 | 1 4 . Detach . | . . . Swap 8 | . 7 1 Drop 7 | . 7 . Fire 44 | . 39 5 Melee . | . . . Ram . | . . . Kick . | . . . Crush . | . . . Escape Stasis . | . . . Rewire . | . . . Trap . | . . . Miscellaneous . | . . . Route ------- -11/Scrapyard -10/Materials (discovered 6 exits: [*Mat x3] / [*Min x2] / [*Sub]) -10/Subcaves History --------- Turn | Location | Event 8 | -11/Scrapyard | Discovered new exit (range 16) 64 | -11/Scrapyard | Entered Materials 179 | -10/Materials | Discovered new exit (range 14) 306 | -10/Materials | Build established: Mutant 326 | -10/Materials | Discovered new exit (range 7) 666 | -10/Materials | Discovered new exit (range 4) 775 | -10/Materials | Discovered new exit (range 13) 957 | -10/Materials | Discovered new exit (range 10) 1307 | -10/Materials | Discovered new exit (range 13) 1328 | -10/Materials | Entered Subcaves 1329 | -10/Subcaves | Approached by a straggling Scientist 1339 | -10/Subcaves | Core integrity fell below 50% 1347 | -10/Subcaves | Core integrity fell below 20% 1352 | -10/Subcaves | Destroyed by PY-FIW(R) with Subdweller Beam Cannon Last Messages --------------- 01318_ U-05 Engineer lays Concrete. 01319_ U-05 Engineer builds a Wall. 01321_ T-07 Excavator is excavating. 01325_ U-05 Engineer lays Concrete. 01325_ T-07 Excavator is excavating. 01326_ U-05 Engineer builds a Wall. LOCATION=UNKNOWN AMBIENT_HEAT=-10 GOAL=ESCAPE 01329_ G5-Z5K(c): "Thank the algorithms! I was beginning to lose hope I'd never make it past all the Subs lurking out here." 01332_ G5-Z5K(c): "Hey, let me tag along and I can get us both out of this nasty situation. At least I think I can... The group I got separated from was talking about a shortcut back to the UFD." 01338_ G5-Z5K(c) destroyed. 01343_ Subatomizers dissect the Lgt. Ion Engine. 01344_ Wheel destroyed. Map ----- +----------------------------------------------------+ | ?????????????????????????????????????????????? | | ?????????????????????????????????????????????? | | ?????????????????????????????????????????????? | | ?????????????????????????????????????????????? | | ?????????????????????????????????????????????? | | ?????????????????????????????????????????????? | | ?????????????????????????????????????????????? | | ?????????????????????????????????????????????? | | ?????????????????????????????????????????????? | | ?????????????????????????????????????????????? | | ?????????????????????????????????????????????? | | ?????????????????????????????????????????????? | | ?????????????????????????????????????????????? | | ?????????????????????????????????????????????? | | ?????????????????????????????????????????????? | | ??????????????????????##?????????????????????? | | ?????????????????????? ??????????????????????? | | ??????????????#??????? ??????????????????????? | | ??????????????# ?????? ??????????????????????? | | ??????????????# ????? ????????????? ????????? | | ??????????????# ???? ???????????? ???????? | | ??????????????# ?## ??????????? ????????? | | ??????????????# ## #?????????? ? ???????? | | ??????????????# #????????? ???????? | | ??????????????# ####?###? ??????? | | ??????????????# @ ## # #???????? | | ??????????????#; R #????????? | | ??????????????### ### R #????????? | | ????????????????????## * # ???????? | | ????????????????????## # #????????????? | | ??????????????????### ##??#????????????? | | ????????????????# #???????????????? | | ???????????????# ##???????????????? | | ???????????????## # ###????????????????? | | ????????????????# ?## ##??????????????????? | | ???????????????# ???# #???????????????????? | | ???????????????#????## ???????????????????? | | ?????????????????????# ???????????????????? | | ?????????????????????# ???????????????????? | | ?????????????????????## ???????????????????? | | ??????????????????????#### ??????????????????? | | ?????????????????????????????????????????????? | | ?????????????????????????????????????????????? | | ?????????????????????????????????????????????? | | ?????????????????????????????????????????????? | | ?????????????????????????????????????????????? | | ?????????????????????????????????????????????? | | ?????????????????????????????????????????????? | | ?????????????????????????????????????????????? | | ?????????????????????????????????????????????? | +----------------------------------------------------+ Best States ------------- Heat Dissipation 25 Energy Generation 12 Energy Capacity 265 Matter Stores 300 Matter Capacity 300 Sight Range 16 Terrain Scan Density 10 ECM Strength 1 Evasion (%) 55 Item Schematics ----------------- None Robot Schematics ------------------ None Fabricated ------------ Nothing Repaired ---------- Nothing Alien Tech Used ----------------- None Achievements -------------- None Challenges ------------ None Game ------ Seed MetaCompactMicrothruster Manual? 0 Play Time 00:12:32 Cumulative 236.1 hours Start 2025.05.07 @ 11:58:13 End 2025.05.07 @ 13:10:43 Sessions 1 Manual Loads 0 Difficulty Rogue Special Mode None Game No. 353 Rogue 353 Adventurer 0 Explorer 0 Win Type - Total 1 Types 1/0/0/0/0/0/0/0/0/0 Lore% 45 Gallery% 59 Achievement% 43 Wizard Run 0 Options --------- Layout 1 ASCII 0 Keyboard 0 Movement Mouse Keybinds 0 Fullscreen 2 Font 24/Smallcaps Map View 50x35 Zoom Use 0% Tactical HUD 1 Map Filters NONE Filters NONE Steam 1 RUN: 6b6dc17a-cbf1-4e0c-a050-be395be6f1ac